[Event "St Kilda East and Caulfield Chess Club RAPID Term 3, 2025"]
[Site "st kilda east, Australia"]
[Date "2025.07.24"]
[Round "5.6"]
[White "Yong, Leonard"]
[Black "Nakada, Kazu"]
[Result "1-0"]
[TimeControl "13 minutes per game plus 2 seconds from move 1"]
[WhiteElo "368"]
[BlackElo "802"]

1. e4 {[%clk 00:13:00]} {[%emt 00:00:02]} e5 {[%clk 00:13:02]} {[%emt
00:00:03]} 2. Nf3 {[%clk 00:13:01]} Nc6 {[%clk 00:13:03]} 3. Nc3 {[%clk
00:13:01]} {[%emt 00:00:01]} Nf6 {[%clk 00:13:04]} 4. d3 {[%clk 00:12:59]}
{[%emt 00:00:04]} Bb4 {[%clk 00:13:03]} {[%emt 00:00:02]} 5. Bd2 {[%clk
00:13:00]} {[%emt 00:00:02]} O-O {[%clk 00:12:58]} {[%emt 00:00:08]} 6. Be2
{[%clk 00:12:59]} {[%emt 00:00:02]} d5 {[%clk 00:12:56]} {[%emt 00:00:04]} 7.
O-O {[%clk 00:12:58]} {[%emt 00:00:03]} dxe4 {[%clk 00:12:48]} {[%emt
00:00:11]} 8. dxe4 {[%clk 00:12:51]} {[%emt 00:00:08]} Bxc3 {[%clk 00:12:48]}
{[%emt 00:00:03]} 9. bxc3 {[%clk 00:12:44]} {[%emt 00:00:08]} Nxe4 {[%clk
00:12:48]} {[%emt 00:00:02]} 10. Bd3 {[%clk 00:12:24]} {[%emt 00:00:22]} Nxd2
{[%clk 00:12:43]} {[%emt 00:00:07]} 11. Nxd2 {[%clk 00:12:22]} {[%emt
00:00:04]} Qf6 {[%clk 00:12:28]} {[%emt 00:00:17]} 12. Ne4 {[%clk 00:12:15]}
{[%emt 00:00:09]} Qe7 {[%clk 00:12:26]} {[%emt 00:00:04]} 13. Re1 {[%clk
00:12:10]} {[%emt 00:00:07]} Re8 {[%clk 00:12:23]} {[%emt 00:00:06]} 14. Qh5
{[%clk 00:12:01]} {[%emt 00:00:11]} g6 {[%clk 00:12:17]} {[%emt 00:00:08]} 15.
Qf3 {[%clk 00:11:57]} {[%emt 00:00:06]} f5 {[%clk 00:12:15]} {[%emt 00:00:04]}
16. Bc4+ {[%clk 00:11:25]} {[%emt 00:00:34]} Be6 {[%clk 00:12:00]} {[%emt
00:00:16]} 17. Bxe6+ {[%clk 00:11:19]} {[%emt 00:00:08]} Qxe6 {[%clk 00:12:00]}
{[%emt 00:00:02]} 18. Nc5 {[%clk 00:11:14]} {[%emt 00:00:06]} Qc8 {[%clk
00:11:35]} {[%emt 00:00:27]} 19. Qd5+ {[%clk 00:10:52]} {[%emt 00:00:24]} Kg7
{[%clk 00:11:25]} {[%emt 00:00:12]} 20. Qc4 {[%clk 00:10:23]} {[%emt 00:00:31]}
e4 {[%clk 00:11:14]} {[%emt 00:00:13]} 21. Rad1 {[%clk 00:10:18]} {[%emt
00:00:06]} b6 {[%clk 00:10:57]} {[%emt 00:00:19]} 22. Rd7+ {[%clk 00:08:59]}
{[%emt 00:01:22]} Kh6 {[%clk 00:10:23]} {[%emt 00:00:36]} 23. Qf7 {[%clk
00:07:42]} {[%emt 00:01:19]} bxc5 {[%clk 00:10:03]} {[%emt 00:00:22]} 24. Qxh7+
{[%clk 00:07:34]} {[%emt 00:00:07]} Kg5 {[%clk 00:10:04]} {[%emt 00:00:05]} 25.
h4+ {[%clk 00:07:32]} {[%emt 00:00:03]} Kf6 {[%clk 00:10:04]} {[%emt 00:00:02]}
26. Qf7+ {[%clk 00:07:30]} {[%emt 00:00:04]} Ke5 {[%clk 00:10:03]} {[%emt
00:00:03]} 27. f4+ {[%clk 00:07:18]} {[%emt 00:00:14]} Kxf4 {[%clk 00:09:53]}
{[%emt 00:00:11]} 28. Rf1+ {[%clk 00:07:17]} {[%emt 00:00:04]} Ke3 {[%clk
00:09:22]} {[%emt 00:00:33]} 29. Qd5 {[%clk 00:06:22]} {[%emt 00:00:57]} Nd4
{[%clk 00:08:37]} {[%emt 00:00:47]} 30. cxd4 {[%clk 00:06:05]} {[%emt
00:00:19]} Qb8 {[%clk 00:05:47]} {[%emt 00:02:53]} 31. dxc5 {[%clk 00:05:50]}
{[%emt 00:00:17]} Qb4 {[%clk 00:05:24]} {[%emt 00:00:25]} 32. Qd1 {[%clk
00:04:53]} {[%emt 00:00:58]} Rad8 {[%clk 00:04:11]} {[%emt 00:01:15]} 33. Rf3+
{[%clk 00:04:37]} {[%emt 00:00:18]} exf3 {[%clk 00:04:09]} {[%emt 00:00:04]} 34.
Qxf3# {[%clk 00:04:34]} {[%emt 00:00:04]} 1-0

[Event "St Kilda East and Caulfield Chess Club RAPID Term 3, 2025"]
[Site "st kilda east, Australia"]
[Date "2025.07.24"]
[Round "5.1"]
[White "Kovalenko, Kiy"]
[Black "Rosenberger, Oliver"]
[Result "0-1"]
[TimeControl "13 minutes per game plus 2 seconds from move 1"]
[WhiteElo "839"]
[BlackElo "1675"]

1. e4 {[%clk 00:13:00]} {[%emt 00:00:04]} d6 {[%clk 00:13:01]} 2. d4 {[%clk
00:13:00]} {[%emt 00:00:01]} Nf6 {[%clk 00:13:02]} {[%emt 00:00:01]} 3. Nc3
{[%clk 00:13:00]} {[%emt 00:00:02]} c6 {[%clk 00:13:03]} 4. Nf3 {[%clk
00:12:59]} {[%emt 00:00:03]} Bg4 {[%clk 00:13:04]} {[%emt 00:00:01]} 5. Bg5
{[%clk 00:12:58]} {[%emt 00:00:04]} Qa5 {[%clk 00:13:00]} {[%emt 00:00:05]} 6.
Qd2 {[%clk 00:12:54]} {[%emt 00:00:07]} Nbd7 {[%clk 00:12:34]} {[%emt
00:00:28]} 7. Be2 {[%clk 00:12:50]} {[%emt 00:00:06]} h6 {[%clk 00:12:23]}
{[%emt 00:00:12]} 8. Be3 {[%clk 00:12:44]} {[%emt 00:00:07]} e5 {[%clk
00:12:17]} {[%emt 00:00:09]} 9. O-O-O {[%clk 00:12:37]} {[%emt 00:00:10]} O-O-O
{[%clk 00:12:00]} {[%emt 00:00:19]} 10. Rhe1 {[%clk 00:12:34]} {[%emt
00:00:05]} Kb8 {[%clk 00:11:49]} {[%emt 00:00:13]} 11. Kb1 {[%clk 00:12:33]}
{[%emt 00:00:03]} Be6 {[%clk 00:10:54]} {[%emt 00:00:57]} 12. a3 {[%clk
00:12:27]} {[%emt 00:00:08]} g5 {[%clk 00:10:51]} {[%emt 00:00:05]} 13. h3
{[%clk 00:11:43]} {[%emt 00:00:46]} Bg7 {[%clk 00:10:48]} {[%emt 00:00:04]} 14.
dxe5 {[%clk 00:10:59]} {[%emt 00:00:47]} dxe5 {[%clk 00:10:48]} {[%emt
00:00:03]} 15. Bd3 {[%clk 00:10:58]} {[%emt 00:00:02]} Bf8 {[%clk 00:10:37]}
{[%emt 00:00:12]} 16. Be2 {[%clk 00:09:39]} {[%emt 00:01:22]} Be7 {[%clk
00:10:37]} {[%emt 00:00:03]} 17. Bd3 {[%clk 00:09:28]} {[%emt 00:00:12]} Nh5
{[%clk 00:10:06]} {[%emt 00:00:32]} 18. Ne2 {[%clk 00:08:39]} {[%emt 00:00:52]}
Qc7 {[%clk 00:09:58]} {[%emt 00:00:10]} 19. Rc1 {[%clk 00:06:49]} {[%emt
00:01:53]} Nf4 {[%clk 00:09:56]} {[%emt 00:00:03]} 20. Nxf4 {[%clk 00:06:31]}
{[%emt 00:00:20]} gxf4 {[%clk 00:09:54]} {[%emt 00:00:04]} 21. Bxa7+ {[%clk
00:06:24]} {[%emt 00:00:10]} Kxa7 {[%clk 00:09:54]} {[%emt 00:00:03]} 22. Qc3
{[%clk 00:06:14]} {[%emt 00:00:11]} f6 {[%clk 00:09:45]} {[%emt 00:00:10]} 23.
Bc4 {[%clk 00:06:05]} {[%emt 00:00:12]} Bxc4 {[%clk 00:09:19]} {[%emt
00:00:28]} 24. Qxc4 {[%clk 00:06:01]} {[%emt 00:00:07]} Nb6 {[%clk 00:09:18]}
{[%emt 00:00:02]} 25. Qb3 {[%clk 00:05:50]} {[%emt 00:00:09]} Rhg8 {[%clk
00:09:17]} {[%emt 00:00:07]} 26. Nh4 {[%clk 00:04:53]} {[%emt 00:00:59]} Bc5
{[%clk 00:09:05]} {[%emt 00:00:13]} 27. Re2 {[%clk 00:04:31]} {[%emt 00:00:25]}
Rg7 {[%clk 00:08:27]} {[%emt 00:00:39]} 28. g3 {[%clk 00:03:48]} {[%emt
00:00:45]} fxg3 {[%clk 00:08:05]} {[%emt 00:00:24]} 29. fxg3 {[%clk 00:03:42]}
{[%emt 00:00:07]} Kb8 {[%clk 00:07:43]} {[%emt 00:00:24]} 30. g4 {[%clk
00:03:12]} {[%emt 00:00:33]} Qf7 {[%clk 00:07:35]} {[%emt 00:00:09]} 31. Qc3
{[%clk 00:02:57]} {[%emt 00:00:18]} Qc4 {[%clk 00:07:31]} {[%emt 00:00:06]} 32.
Qf3 {[%clk 00:02:43]} {[%emt 00:00:14]} Rf7 {[%clk 00:06:07]} {[%emt 00:01:27]}
33. Nf5 {[%clk 00:02:23]} {[%emt 00:00:24]} Na4 {[%clk 00:05:29]} {[%emt
00:00:39]} 34. Ne3 {[%clk 00:01:44]} {[%emt 00:00:40]} Qb5 {[%clk 00:05:03]}
{[%emt 00:00:28]} 35. c4 {[%clk 00:01:09]} {[%emt 00:00:38]} Qb3 {[%clk
00:04:55]} {[%emt 00:00:08]} 36. Qf2 {[%clk 00:00:51]} {[%emt 00:00:23]} Rd3
{[%clk 00:04:31]} {[%emt 00:00:26]} 37. Nf5 {[%clk 00:00:43]} {[%emt 00:00:11]}
Bxf2 {[%clk 00:04:27]} {[%emt 00:00:06]} 38. Rxf2 {[%emt 00:00:10]} Rd1 {[%clk
00:04:21]} 39. Nxh6 {[%clk 00:00:25]} {[%emt 00:00:20]} Nc3+ {[%clk 00:04:20]}
{[%emt 00:00:02]} 0-1

[Event "St Kilda East and Caulfield Chess Club RAPID Term 3, 2025"]
[Site "st kilda east, Australia"]
[Date "2025.07.24"]
[Round "5.3"]
[White "Nash, Paul"]
[Black "Lopata, Felix"]
[Result "0-1"]
[TimeControl "13 minutes per game plus 2 seconds from move 1"]
[WhiteElo "730"]
[BlackElo "1088"]

1. e4 {[%clk 00:13:01]} e6 {[%clk 00:13:00]} {[%emt 00:00:04]} 2. d4 {[%clk
00:13:00]} {[%emt 00:00:01]} d5 {[%clk 00:13:02]} 3. e5 {[%clk 00:13:01]}
{[%emt 00:00:01]} c5 {[%clk 00:13:02]} {[%emt 00:00:01]} 4. c3 {[%clk
00:13:02]} Nc6 {[%clk 00:13:03]} {[%emt 00:00:01]} 5. Nf3 {[%clk 00:13:02]}
{[%emt 00:00:02]} cxd4 {[%clk 00:13:00]} {[%emt 00:00:06]} 6. cxd4 {[%clk
00:13:01]} {[%emt 00:00:03]} Nge7 {[%clk 00:13:00]} {[%emt 00:00:01]} 7. Be2
{[%clk 00:12:24]} {[%emt 00:00:39]} Nf5 {[%clk 00:12:58]} {[%emt 00:00:05]} 8.
a3 {[%clk 00:12:23]} {[%emt 00:00:04]} Be7 {[%clk 00:12:57]} {[%emt 00:00:03]}
9. O-O {[%clk 00:12:21]} {[%emt 00:00:03]} O-O {[%clk 00:12:47]} {[%emt
00:00:12]} 10. b4 {[%clk 00:12:09]} {[%emt 00:00:14]} Qb6 {[%clk 00:12:33]}
{[%emt 00:00:16]} 11. Bb2 {[%clk 00:12:05]} {[%emt 00:00:07]} a5 {[%clk
00:12:15]} {[%emt 00:00:20]} 12. b5 {[%clk 00:11:54]} {[%emt 00:00:13]} Na7
{[%clk 00:12:14]} {[%emt 00:00:02]} 13. a4 {[%clk 00:11:51]} {[%emt 00:00:06]}
Bd7 {[%clk 00:11:54]} {[%emt 00:00:22]} 14. Ba3 {[%clk 00:11:34]} {[%emt
00:00:19]} Bxa3 {[%clk 00:11:33]} {[%emt 00:00:23]} 15. Nxa3 {[%clk 00:11:34]}
{[%emt 00:00:01]} Rac8 {[%clk 00:11:22]} {[%emt 00:00:13]} 16. Nc2 {[%clk
00:11:32]} {[%emt 00:00:04]} Rc7 {[%clk 00:11:08]} {[%emt 00:00:18]} 17. Ne3
{[%clk 00:11:18]} {[%emt 00:00:15]} Nxe3 {[%clk 00:11:00]} {[%emt 00:00:10]} 18.
fxe3 {[%clk 00:11:18]} {[%emt 00:00:02]} Rfc8 {[%clk 00:11:00]} {[%emt
00:00:03]} 19. Bd3 {[%clk 00:10:54]} {[%emt 00:00:26]} h6 {[%clk 00:10:49]}
{[%emt 00:00:12]} 20. Qd2 {[%clk 00:10:47]} {[%emt 00:00:09]} Rc3 {[%clk
00:10:24]} {[%emt 00:00:31]} 21. Rac1 {[%clk 00:10:28]} {[%emt 00:00:20]} Rxc1
{[%clk 00:09:23]} {[%emt 00:01:04]} 22. Rxc1 {[%clk 00:10:28]} {[%emt
00:00:02]} Qd8 {[%clk 00:09:18]} {[%emt 00:00:06]} 23. Rxc8 {[%clk 00:10:04]}
{[%emt 00:00:26]} Nxc8 {[%clk 00:09:18]} {[%emt 00:00:02]} 24. Qc2 {[%clk
00:09:03]} {[%emt 00:01:02]} Nb6 {[%clk 00:08:59]} {[%emt 00:00:21]} 25. g3
{[%clk 00:08:40]} {[%emt 00:00:22]} Qc8 {[%clk 00:08:49]} {[%emt 00:00:16]} 26.
Qxc8+ {[%clk 00:07:36]} {[%emt 00:01:06]} Bxc8 {[%clk 00:08:49]} {[%emt
00:00:02]} 27. Bc2 {[%clk 00:07:30]} {[%emt 00:00:07]} Nc4 {[%clk 00:08:48]}
{[%emt 00:00:04]} 28. Kf2 {[%clk 00:07:13]} {[%emt 00:00:19]} Kf8 {[%clk
00:08:38]} {[%emt 00:00:12]} 29. Ke2 {[%clk 00:07:11]} {[%emt 00:00:03]} Ke7
{[%clk 00:08:25]} {[%emt 00:00:17]} 30. Nd2 {[%clk 00:07:01]} {[%emt 00:00:11]}
Nxd2 {[%clk 00:08:04]} {[%emt 00:00:24]} 31. Kxd2 {[%clk 00:07:01]} {[%emt
00:00:02]} f6 {[%clk 00:08:05]} 32. exf6+ {[%clk 00:06:41]} {[%emt 00:00:22]}
Kxf6 {[%clk 00:08:05]} {[%emt 00:00:02]} 33. e4 {[%clk 00:06:25]} {[%emt
00:00:19]} Kg5 {[%clk 00:07:51]} {[%emt 00:00:17]} 34. e5 {[%clk 00:06:04]}
{[%emt 00:00:23]} Kg4 {[%clk 00:07:45]} {[%emt 00:00:08]} 35. Ke3 {[%clk
00:05:35]} {[%emt 00:00:30]} Kh3 {[%clk 00:06:34]} {[%emt 00:01:14]} 36. Kf4
{[%clk 00:05:20]} {[%emt 00:00:17]} Bd7 {[%clk 00:06:20]} {[%emt 00:00:16]} 37.
Bg6 {[%clk 00:05:16]} {[%emt 00:00:05]} Kxh2 {[%clk 00:06:08]} {[%emt
00:00:15]} 38. g4 {[%clk 00:05:12]} {[%emt 00:00:06]} Kg2 {[%clk 00:06:06]}
{[%emt 00:00:04]} 39. g5 {[%clk 00:04:25]} {[%emt 00:00:48]} hxg5+ {[%clk
00:05:57]} {[%emt 00:00:13]} 40. Kg4 {[%clk 00:04:24]} {[%emt 00:00:02]} Kf2
{[%clk 00:05:56]} {[%emt 00:00:04]} 41. Kxg5 {[%clk 00:03:27]} {[%emt
00:00:59]} Ke3 {[%clk 00:05:54]} {[%emt 00:00:04]} 42. Bf7 {[%clk 00:03:01]}
{[%emt 00:00:27]} Kxd4 {[%clk 00:05:52]} {[%emt 00:00:04]} 43. Kg6 {[%clk
00:02:58]} {[%emt 00:00:05]} Kxe5 {[%clk 00:05:50]} {[%emt 00:00:05]} 44. Kxg7
{[%clk 00:02:54]} {[%emt 00:00:06]} d4 {[%clk 00:05:49]} {[%emt 00:00:02]} 45.
Bg6 {[%clk 00:02:53]} {[%emt 00:00:02]} Kd5 {[%clk 00:05:38]} {[%emt 00:00:15]}
46. Bd3 {[%clk 00:02:33]} {[%emt 00:00:22]} e5 {[%clk 00:05:36]} {[%emt
00:00:04]} 47. Kf6 {[%clk 00:02:25]} {[%emt 00:00:11]} e4 {[%emt 00:00:23]} 48.
Bf1 {[%clk 00:01:53]} 0-1

[Event "St Kilda East and Caulfield Chess Club RAPID Term 3, 2025"]
[Site "st kilda east, Australia"]
[Date "2025.07.24"]
[Round "5.4"]
[White "Wang, Noah"]
[Black "Longe, Mathieu"]
[Result "1/2-1/2"]
[TimeControl "13 minutes per game plus 2 seconds from move 1"]
[WhiteElo "936"]
[BlackElo "699"]

1. e4 {[%clk 00:13:00]} {[%emt 00:00:02]} c5 {[%clk 00:13:00]} {[%emt
00:00:02]} 2. Nf3 {[%clk 00:13:00]} {[%emt 00:00:01]} Nc6 {[%clk 00:13:00]}
{[%emt 00:00:03]} 3. d4 {[%clk 00:13:00]} {[%emt 00:00:02]} cxd4 {[%clk
00:13:00]} {[%emt 00:00:02]} 4. Nxd4 {[%clk 00:13:00]} {[%emt 00:00:01]} e5
{[%clk 00:12:59]} {[%emt 00:00:03]} 5. Nb3 {[%clk 00:12:59]} {[%emt 00:00:03]}
Nf6 {[%clk 00:12:54]} {[%emt 00:00:07]} 6. Nc3 {[%clk 00:12:59]} {[%emt
00:00:02]} Bb4 {[%clk 00:12:51]} {[%emt 00:00:04]} 7. Bd3 {[%clk 00:12:52]}
{[%emt 00:00:09]} Bxc3+ {[%clk 00:12:41]} {[%emt 00:00:12]} 8. bxc3 {[%clk
00:12:51]} {[%emt 00:00:03]} O-O {[%clk 00:12:32]} {[%emt 00:00:11]} 9. O-O
{[%clk 00:12:50]} {[%emt 00:00:03]} d5 {[%clk 00:12:23]} {[%emt 00:00:12]} 10.
Bg5 {[%clk 00:11:47]} {[%emt 00:01:05]} dxe4 {[%clk 00:11:43]} {[%emt
00:00:42]} 11. Bxf6 {[%clk 00:11:37]} {[%emt 00:00:11]} Qxf6 {[%clk 00:11:19]}
{[%emt 00:00:25]} 12. Bxe4 {[%clk 00:11:35]} {[%emt 00:00:04]} Rd8 {[%clk
00:10:05]} {[%emt 00:01:16]} 13. Qf3 {[%clk 00:10:59]} {[%emt 00:00:37]} Qxf3
{[%clk 00:09:55]} {[%emt 00:00:12]} 14. Bxf3 {[%clk 00:11:01]} Bf5 {[%clk
00:09:40]} {[%emt 00:00:18]} 15. Nc5 {[%clk 00:10:21]} {[%emt 00:00:42]} Rab8
{[%clk 00:09:24]} {[%emt 00:00:17]} 16. Rad1 {[%clk 00:10:15]} {[%emt
00:00:08]} b6 {[%clk 00:08:11]} {[%emt 00:01:15]} 17. Nb7 {[%clk 00:08:48]}
{[%emt 00:01:30]} Rxd1 {[%clk 00:05:13]} {[%emt 00:03:01]} 18. Rxd1 {[%clk
00:08:41]} {[%emt 00:00:09]} Rxb7 {[%clk 00:05:09]} {[%emt 00:00:06]} 19. Bxc6
{[%clk 00:08:40]} {[%emt 00:00:03]} Rb8 {[%clk 00:05:05]} {[%emt 00:00:06]} 20.
f3 {[%clk 00:08:05]} {[%emt 00:00:37]} Bxc2 {[%clk 00:04:35]} {[%emt 00:00:32]}
21. Rd7 {[%clk 00:08:04]} {[%emt 00:00:04]} a5 {[%clk 00:04:21]} {[%emt
00:00:16]} 22. c4 {[%clk 00:06:11]} {[%emt 00:01:55]} f6 {[%clk 00:03:42]}
{[%emt 00:00:41]} 23. Bb5 {[%clk 00:05:44]} {[%emt 00:00:29]} a4 {[%clk
00:03:20]} {[%emt 00:00:25]} 24. a3 {[%clk 00:05:29]} {[%emt 00:00:16]} f5
{[%clk 00:02:52]} {[%emt 00:00:30]} 25. Kf2 {[%clk 00:05:24]} {[%emt 00:00:07]}
e4 {[%clk 00:02:50]} {[%emt 00:00:04]} 26. fxe4 {[%clk 00:05:04]} {[%emt
00:00:21]} fxe4 {[%clk 00:02:49]} {[%emt 00:00:04]} 27. Ke3 {[%clk 00:05:04]}
{[%emt 00:00:01]} h6 {[%clk 00:02:18]} {[%emt 00:00:34]} 28. Kd4 {[%clk
00:04:34]} {[%emt 00:00:31]} Kh7 {[%clk 00:02:11]} {[%emt 00:00:09]} 29. Bc6
{[%clk 00:04:26]} {[%emt 00:00:10]} Kg6 {[%clk 00:01:28]} {[%emt 00:00:45]} 30.
Rd5 {[%clk 00:02:36]} {[%emt 00:01:51]} Kf6 {[%clk 00:01:16]} {[%emt 00:00:15]}
31. Bd7 {[%clk 00:02:24]} {[%emt 00:00:13]} g5 {[%clk 00:01:14]} {[%emt
00:00:05]} 32. g3 {[%clk 00:01:49]} {[%emt 00:00:37]} Rd8 {[%clk 00:00:55]}
{[%emt 00:00:21]} 33. Bc6 {[%clk 00:01:28]} {[%emt 00:00:21]} Rxd5+ {[%clk
00:00:44]} {[%emt 00:00:15]} 34. Bxd5 {[%clk 00:01:29]} {[%emt 00:00:01]} Kf5
{[%clk 00:00:44]} {[%emt 00:00:02]} 35. Bc6 {[%clk 00:01:13]} {[%emt 00:00:18]}
h5 {[%clk 00:00:41]} {[%emt 00:00:05]} 36. Bd7+ {[%clk 00:01:04]} {[%emt
00:00:10]} Kf6 {[%clk 00:00:39]} {[%emt 00:00:04]} 37. Bc6 {[%clk 00:01:02]}
{[%emt 00:00:04]} h4 {[%clk 00:00:32]} {[%emt 00:00:10]} 38. gxh4 {[%clk
00:00:58]} {[%emt 00:00:06]} gxh4 {[%clk 00:00:32]} {[%emt 00:00:01]} 39. Bxe4
{[%clk 00:00:59]} {[%emt 00:00:01]} Bxe4 {[%clk 00:00:30]} {[%emt 00:00:04]} 40.
Kxe4 {[%clk 00:01:00]} {[%emt 00:00:01]} Ke6 {[%clk 00:00:30]} {[%emt
00:00:02]} 41. h3 {[%clk 00:00:59]} {[%emt 00:00:02]} Kd6 {[%clk 00:00:31]}
{[%emt 00:00:02]} 42. Kd4 {[%clk 00:01:00]} Kc6 {[%clk 00:00:31]} {[%emt
00:00:02]} 43. Kd3 {[%clk 00:00:57]} {[%emt 00:00:05]} Kc5 {[%clk 00:00:32]}
{[%emt 00:00:02]} 44. Kc3 {[%clk 00:00:58]} b5 {[%clk 00:00:31]} {[%emt
00:00:03]} 45. cxb5 {[%clk 00:00:56]} {[%emt 00:00:04]} Kxb5 {[%clk 00:00:32]}
{[%emt 00:00:02]} 46. Kb2 {[%clk 00:00:54]} {[%emt 00:00:04]} Kc4 {[%clk
00:00:32]} {[%emt 00:00:02]} 47. Kc2 {[%clk 00:00:55]} {[%emt 00:00:01]} Kd4
{[%clk 00:00:30]} {[%emt 00:00:04]} 48. Kd2 {[%clk 00:00:56]} {[%emt 00:00:02]}
Kc4 {[%clk 00:00:31]} {[%emt 00:00:02]} 49. Kc2 {[%clk 00:00:52]} {[%emt
00:00:05]} Kb5 {[%emt 00:00:12]} 50. Kc3 Ka5 {[%emt 00:00:04]} 51. Kd4 {[%clk
00:00:52]} Ka6 {[%emt 00:00:03]} 52. Kc5 1/2-1/2

[Event "St Kilda East and Caulfield Chess Club RAPID Term 3, 2025"]
[Site "st kilda east, Australia"]
[Date "2025.07.24"]
[Round "5.5"]
[White "Beckman, John"]
[Black "Shore, Isaac"]
[Result "1-0"]
[TimeControl "13 minutes per game plus 2 seconds from move 1"]
[WhiteElo "859"]
[BlackElo "521"]

1. e4 {[%clk 00:13:01]} {[%emt 00:39:55]} c5 {[%clk 00:13:01]} {[%emt
00:00:03]} 2. Nf3 {[%clk 00:13:01]} {[%emt 00:00:02]} d6 {[%clk 00:13:01]}
{[%emt 00:00:02]} 3. d4 {[%clk 00:13:00]} {[%emt 00:00:03]} cxd4 {[%clk
00:13:01]} {[%emt 00:00:02]} 4. Nxd4 {[%clk 00:13:00]} {[%emt 00:00:02]} Nf6
{[%clk 00:13:02]} {[%emt 00:00:02]} 5. Nc3 {[%clk 00:12:58]} {[%emt 00:00:02]}
g6 {[%clk 00:12:37]} {[%emt 00:00:28]} 6. Bc4 {[%clk 00:12:56]} {[%emt
00:00:04]} a6 {[%clk 00:12:35]} {[%emt 00:00:05]} 7. Bb3 {[%clk 00:12:54]}
{[%emt 00:00:04]} e6 {[%clk 00:12:30]} {[%emt 00:00:06]} 8. Bg5 {[%clk
00:12:49]} {[%emt 00:00:07]} Be7 {[%clk 00:12:29]} {[%emt 00:00:04]} 9. Qd2
{[%clk 00:12:29]} {[%emt 00:00:22]} O-O {[%clk 00:12:20]} {[%emt 00:00:10]} 10.
f3 {[%clk 00:12:23]} {[%emt 00:00:07]} Qc7 {[%clk 00:12:09]} {[%emt 00:00:15]}
11. O-O-O {[%clk 00:12:03]} {[%emt 00:00:22]} Bd7 {[%clk 00:11:29]} {[%emt
00:00:42]} 12. Kb1 {[%clk 00:12:03]} {[%emt 00:00:02]} Nc6 {[%clk 00:11:08]}
{[%emt 00:00:23]} 13. h4 {[%clk 00:11:45]} {[%emt 00:00:20]} Rad8 {[%clk
00:10:20]} {[%emt 00:00:50]} 14. Bh6 {[%clk 00:11:32]} {[%emt 00:00:15]} Rfe8
{[%clk 00:10:17]} {[%emt 00:00:06]} 15. g4 {[%clk 00:11:23]} {[%emt 00:00:10]}
Nxd4 {[%clk 00:09:33]} {[%emt 00:00:46]} 16. Qxd4 {[%clk 00:11:13]} {[%emt
00:00:13]} Bc6 {[%clk 00:09:03]} {[%emt 00:00:33]} 17. h5 {[%clk 00:10:54]}
{[%emt 00:00:21]} d5 {[%emt 00:02:46]} 18. exd5 {[%clk 00:09:18]} {[%emt
00:00:01]} e5 {[%clk 00:06:42]} {[%emt 00:01:15]} 19. Qd3 {[%clk 00:09:00]}
{[%emt 00:00:19]} Bb4 {[%clk 00:05:27]} {[%emt 00:01:18]} 20. hxg6 {[%clk
00:08:44]} {[%emt 00:00:18]} fxg6 {[%clk 00:04:45]} {[%emt 00:00:41]} 21. dxc6+
{[%clk 00:06:21]} {[%emt 00:02:29]} Kh8 {[%clk 00:04:32]} {[%emt 00:00:14]} 22.
Qe2 {[%clk 00:05:36]} {[%emt 00:00:45]} Qxc6 {[%clk 00:03:51]} {[%emt
00:00:45]} 23. Rxd8 {[%clk 00:05:20]} {[%emt 00:00:18]} Rxd8 {[%clk 00:03:26]}
{[%emt 00:00:26]} 24. Qxe5 {[%clk 00:05:15]} {[%emt 00:00:08]} Qxf3 {[%clk
00:02:16]} {[%emt 00:01:11]} 25. Rg1 {[%clk 00:04:02]} {[%emt 00:01:14]} Re8
{[%clk 00:00:14]} {[%emt 00:02:06]} 26. Qc7 {[%clk 00:03:37]} {[%emt 00:00:26]}
Nd7 {[%clk 00:00:07]} {[%emt 00:00:11]} 27. Qxd7 {[%clk 00:03:22]} {[%emt
00:00:17]} Re7 {[%clk 00:00:04]} {[%emt 00:00:05]} 28. Qd8+ {[%clk 00:03:09]}
{[%emt 00:00:15]} Re8 {[%clk 00:00:05]} {[%emt 00:00:02]} 29. Qxe8+ {[%clk
00:03:08]} {[%emt 00:00:03]} Bf8 {[%clk 00:00:06]} {[%emt 00:00:02]} 30. Qe5+
{[%clk 00:02:53]} {[%emt 00:00:17]} Bg7 {[%clk 00:00:04]} {[%emt 00:00:04]} 31.
Qxg7# {[%clk 00:02:51]} {[%emt 00:00:03]} 1-0